bitfinex/quotes_BTCUSD_20230403
["timestamp","ask_amount","ask_price","bid_price","bid_amount"]
[1680486414509,0.044886,27619.0,27616.0,0.018105]
[1680486414733,0.044886,27619.0,27613.0,0.03668185]
[1680486414734,0.12047487,27618.0,27613.0,0.00046885]
[1680486415024,0.044967,27617.0,27616.0,0.018105]
[1680486415241,0.048712,27618.0,27616.0,0.018104]
[1680486415460,0.40368697,27618.0,27613.0,0.00046885]
[1680486415674,0.35497497,27618.0,27617.0,0.018104]
[1680486415891,0.046493,27618.0,27617.0,0.018104]
[1680486416112,0.046283,27618.0,27617.0,0.018104]
[1680486416335,0.046791,27619.0,27617.0,0.44408207]
[1680486416572,0.18096,27630.0,27617.0,0.44408207]
[1680486416573,0.00021,27622.0,27618.0,0.76827944]
[1680486416797,0.00021,27626.0,27621.0,0.00046885]
[1680486417025,0.00021,27626.0,27622.0,0.018101]
[1680486417251,0.047425,27629.0,27621.0,0.01699838]
[1680486417509,0.19953115,27627.0,27622.0,0.05620447]
[1680486417731,0.046304,27626.0,27622.0,0.05620447]
[1680486417957,0.046304,27626.0,27623.0,0.00046885]
[1680486418194,0.00021,27629.0,27626.0,0.00046885]
[1680486418415,0.00021,27633.0,27627.0,0.054294]
[1680486418644,0.00021,27633.0,27632.0,0.00046885]
[1680486418871,0.044367,27633.0,27632.0,0.09285632]
[1680486419121,0.044367,27633.0,27632.0,0.01856285]
[1680486419122,0.35497497,27633.0,27632.0,0.01856285]
[1680486419357,0.40108497,27633.0,27632.0,0.00046885]
[1680486419590,0.40108497,27633.0,27630.0,0.018095]
[1680486419816,0.39910397,27632.0,27630.0,0.018095]
[1680486420073,0.045045,27631.0,27630.0,0.018095]
[1680486420745,0.3800835,27632.0,27630.0,0.054287]
[1680486420970,0.40131197,27631.0,27630.0,0.018095]
[1680486421195,0.42644065,27631.0,27623.0,0.072401]
[1680486421426,0.54453984,27630.0,27629.0,0.018096]
[1680486421663,0.40277497,27630.0,27629.0,0.018096]
[1680486421885,0.0478,27630.0,27629.0,0.018096]
[1680486422110,0.04759,27630.0,27629.0,0.018096]
[1680486422336,0.04759,27630.0,27628.0,0.00046885]
[1680486422604,0.35497497,27629.0,27628.0,0.00046885]
[1680486422815,0.54392584,27629.0,27617.0,0.0128536]
[1680486423057,0.35497497,27627.0,27618.0,0.00046885]
[1680486423281,0.19008087,27626.0,27620.0,0.018102]
[1680486423505,0.00021,27626.0,27625.0,0.00046885]
[1680486423743,0.02491868,27631.0,27625.0,0.00046885]
[1680486423744,0.02512868,27631.0,27629.0,0.00046885]
[1680486423993,0.02512868,27631.0,27625.0,0.126696]
[1680486423994,0.044854,27630.0,27626.0,0.036196]
[1680486424230,0.39982897,27630.0,27628.0,0.00046885]
[1680486424447,0.047809,27629.0,27628.0,0.00046885]
[1680486424667,0.047809,27629.0,27622.0,0.00046885]
[1680486424668,0.97016884,27629.0,27622.0,0.00046885]
[1680486424885,0.55450612,27627.0,27618.0,0.00046885]
[1680486425129,0.18646887,27626.0,27620.0,0.018102]
[1680486425355,0.40222797,27625.0,27620.0,0.018102]
[1680486425582,0.05,27623.0,27619.0,0.02176968]
[1680486425809,0.40077097,27622.0,27618.0,0.00046885]
[1680486426045,0.046776,27621.0,27618.0,0.00046885]
[1680486426269,0.35497497,27620.0,27618.0,0.00046885]
[1680486426504,0.047103,27619.0,27615.0,0.02196885]
[1680486426724,0.23907787,27619.0,27615.0,0.02196885]
[1680486426994,0.044472,27618.0,27615.0,0.02196885]
[1680486427448,0.18105,27617.0,27615.0,0.0215]
[1680486427677,0.095605,27616.0,27615.0,0.0215]
[1680486427904,0.470805,27616.0,27615.0,0.0215]
[1680486428133,0.471015,27616.0,27615.0,0.0215]
[1680486428358,0.82598997,27616.0,27615.0,0.0215]
[1680486428577,0.82577997,27616.0,27611.0,0.0215]
[1680486428802,0.54332284,27615.0,27611.0,0.0215]
[1680486429018,0.045385,27614.0,27611.0,0.0215]
[1680486429255,0.35497497,27613.0,27611.0,0.0215]
[1680486429476,0.095923,27612.0,27611.0,0.0215]
[1680486429716,0.095923,27612.0,27605.0,6e-05]
[1680486429717,0.3752,27611.0,27605.0,6e-05]
[1680486429940,0.3752,27611.0,27604.0,0.065307]
[1680486429941,0.54248084,27610.0,27604.0,0.028961]
[1680486430158,0.04565,27609.0,27604.0,0.028961]
[1680486430608,0.49694984,27608.0,27604.0,0.023961]
[1680486430609,0.05,27607.0,27604.0,0.023961]
[1680486430869,0.73017497,27605.0,27604.0,1e-06]
[1680486431103,0.91695384,27605.0,27600.0,0.01]
[1680486431332,0.53612497,27601.0,27600.0,0.01]
[1680486431570,0.044437,27601.0,27600.0,0.028115]
[1680486431799,0.04618,27605.0,27600.0,0.209274]
[1680486432029,0.35497497,27605.0,27601.0,0.0267007]
[1680486432262,0.045579,27604.0,27602.0,0.09244647]
[1680486432493,0.045444,27603.0,27602.0,0.054342]
[1680486432730,0.39886297,27608.0,27602.0,0.054342]
[1680486432955,0.35497497,27603.0,27602.0,0.05621847]
[1680486433180,0.40120597,27603.0,27602.0,0.018114]
[1680486433645,0.40120597,27603.0,27601.0,0.018115]
[1680486433872,0.044413,27602.0,27601.0,0.06482217]
[1680486434106,0.05,27612.0,27601.0,0.06482217]
[1680486434107,0.00021,27611.0,27601.0,1.37055014]
[1680486434351,0.2,27615.0,27601.0,1.37055014]
[1680486434352,0.20021,27615.0,27602.0,0.013518]
[1680486434579,0.05021,27616.0,27605.0,0.054336]
[1680486434810,0.046776,27615.0,27605.0,0.054336]
[1680486435036,0.420766,27616.0,27605.0,0.054336]
[1680486435266,0.420766,27616.0,27602.0,0.00018]
[1680486435267,0.35497497,27608.0,27606.0,0.03810447]
[1680486435530,0.39940897,27607.0,27600.0,0.01]
[1680486435757,0.045099,27606.0,27601.0,0.018114]
[1680486436205,0.07817402,27606.0,27601.0,0.018114]
[1680486436462,0.046926,27605.0,27602.0,0.03810447]
[1680486436714,0.03307502,27606.0,27603.0,0.067838]
[1680486436947,0.03307502,27606.0,27604.0,0.78220144]
[1680486437177,0.00021,27616.0,27605.0,0.696564]
[1680486437412,0.2,27621.0,27605.0,0.696564]
[1680486437413,0.00021,27618.0,27606.0,0.12224134]
[1680486437646,0.35497497,27617.0,27609.0,0.018109]
[1680486437883,0.044809,27616.0,27610.0,0.03810447]
[1680486438162,0.35497497,27616.0,27612.0,0.054324]
[1680486438394,0.35497497,27616.0,27613.0,0.04353687]
[1680486438395,0.00021,27616.0,27613.0,0.04353687]
[1680486438629,0.02369775,27617.0,27614.0,0.054319]
[1680486438863,0.02369775,27617.0,27615.0,0.05087047]
[1680486439086,0.02369775,27617.0,27616.0,0.140121]
[1680486439336,0.00021,27623.0,27616.0,0.126736]
[1680486439568,0.2,27628.0,27616.0,0.126736]
[1680486439569,0.35497497,27622.0,27617.0,0.05077807]
[1680486439805,0.00021,27622.0,27618.0,0.05431]
[1680486440065,0.00021,27626.0,27618.0,0.14768538]
[1680486440320,0.35497497,27625.0,27619.0,0.03810447]
[1680486440576,0.047223,27624.0,27621.0,0.126714]
[1680486440835,0.00021,27628.0,27621.0,0.16481847]
[1680486441080,0.00021,27630.0,27622.0,0.04660447]
[1680486441307,0.00021,27630.0,27624.0,0.054298]
[1680486441530,0.00021,27630.0,27625.0,0.03810447]
[1680486441750,0.00021,27630.0,27626.0,0.054295]
[1680486442006,0.00021,27630.0,27625.0,0.03810447]
[1680486442007,0.07030553,27625.0,27620.0,0.01776948]
[1680486442234,0.18670787,27624.0,27622.0,0.036201]
[1680486442462,0.07030553,27625.0,27623.0,0.0036201]
[1680486442691,0.07030553,27625.0,27624.0,0.0181]
[1680486443145,0.07030553,27625.0,27624.0,0.032152]
[1680486443618,0.07030553,27625.0,27624.0,0.040652]
[1680486444071,0.07030553,27625.0,27624.0,0.77082697]
[1680486444303,0.07030553,27625.0,27624.0,0.77094697]
[1680486444536,0.07030553,27625.0,27624.0,0.87706867]
[1680486445964,0.07030553,27625.0,27624.0,0.032332]
[1680486446209,0.07030553,27625.0,27624.0,0.76244697]
[1680486446436,0.07030553,27625.0,27624.0,0.96250697]
[1680486447343,0.07030553,27625.0,27624.0,0.98027645]
[1680486448254,0.07030553,27625.0,27624.0,0.97100697]
[1680486448482,0.07030553,27625.0,27624.0,1.20200697]
[1680486449665,0.07030553,27625.0,27624.0,1.21976645]
[1680486449912,0.07030553,27625.0,27624.0,1.03877645]
[1680486450162,0.07030553,27625.0,27624.0,1.21976645]
[1680486450397,0.02489853,27632.0,27630.0,0.3752]
[1680486450622,0.02489853,27632.0,27631.0,1.05920797]
[1680486450844,0.00021,27639.0,27631.0,1.05920797]
[1680486450845,0.00015,27639.0,27633.0,0.3752]
[1680486451096,0.00015,27639.0,27632.0,0.25]
[1680486451097,0.02371,27642.0,27635.0,0.3752]
[1680486451327,0.02371,27642.0,27638.0,0.3752]
[1680486451554,0.02371,27642.0,27639.0,0.5662554]
[1680486451786,0.35497497,27641.0,27640.0,0.013212]
[1680486452018,0.35497497,27641.0,27633.0,0.00018]
[1680486452019,0.01321165,27639.0,27633.0,0.00018]
[1680486452253,0.15518652,27639.0,27636.0,0.054275]
[1680486452488,0.01321165,27639.0,27636.0,0.054275]
[1680486452711,0.01321165,27639.0,27636.0,0.429475]
[1680486452938,0.01321165,27639.0,27637.0,0.0558175]
[1680486453162,0.01321165,27639.0,27638.0,0.140277]
[1680486454821,0.01321165,27639.0,27638.0,0.85681197]
[1680486455048,0.00321165,27639.0,27638.0,0.87918497]
[1680486455738,0.02371,27642.0,27641.0,0.5752]
[1680486455977,0.02371,27642.0,27641.0,1.25168697]
[1680486456263,0.02371,27642.0,27641.0,1.26018697]
[1680486457180,0.02371,27642.0,27641.0,1.27795645]
[1680486457920,0.02371,27642.0,27641.0,1.27813645]
[1680486458152,0.02371,27642.0,27641.0,1.06036697]
[1680486458604,0.02371,27642.0,27641.0,1.06018697]
[1680486459319,0.02371,27642.0,27641.0,1.36018697]
[1680486459557,0.02371,27642.0,27641.0,1.36036697]
[1680486459803,0.02371,27642.0,27641.0,1.06036697]
[1680486460709,6e-05,27644.0,27643.0,0.5752]
[1680486460931,6e-05,27644.0,27643.0,2.09161097]
[1680486461472,0.02365,27646.0,27645.0,0.3752]
[1680486461713,0.02365,27650.0,27648.0,0.3752]
[1680486461924,0.02365,27650.0,27649.0,0.320999]
[1680486462143,0.02365,27650.0,27649.0,0.329499]
[1680486462359,0.02365,27650.0,27649.0,0.696199]
[1680486462575,0.02365,27650.0,27649.0,1.05967397]
[1680486464113,0.02365,27650.0,27649.0,1.10967397]
[1680486464979,0.02365,27650.0,27649.0,1.05967397]
[1680486465211,0.02365,27650.0,27649.0,0.320999]
[1680486465665,0.02365,27650.0,27649.0,0.67597397]
[1680486466325,0.02365,27650.0,27649.0,1.05117397]
[1680486466791,0.44829984,27650.0,27639.0,1.809015]
[1680486467018,0.44829984,27650.0,27642.0,0.018088]
[1680486467019,0.35497497,27643.0,27642.0,0.018088]
[1680486467244,0.434058,27643.0,27637.0,0.37026532]
[1680486467457,0.434058,27643.0,27637.0,0.18946932]
[1680486467458,0.1809,27640.0,27637.0,0.18946932]
[1680486467674,0.05335,27639.0,27638.0,0.054271]
[1680486467890,0.05356,27639.0,27638.0,0.054271]
[1680486468122,0.40820388,27639.0,27638.0,0.054271]
[1680486468557,0.40820388,27639.0,27638.0,0.01809]
[1680486470088,0.05,27638.0,27635.0,0.00012]
[1680486470318,0.53589497,27636.0,27629.0,0.00018]
[1680486470560,0.2,27633.0,27631.0,0.018095]
[1680486470786,0.54864484,27632.0,27631.0,0.018095]
[1680486471010,0.40666997,27632.0,27629.0,0.00018]
[1680486471244,0.35497497,27632.0,27631.0,0.018095]
[1680486471475,0.40490197,27632.0,27631.0,0.018095]
[1680486473006,0.049927,27632.0,27631.0,0.0235237]
[1680486473252,0.34361,27638.0,27631.0,0.0235237]
[1680486473472,0.40662297,27636.0,27632.0,0.04865]
[1680486473695,0.40662297,27636.0,27633.0,0.018093]
[1680486473696,0.052172,27635.0,27633.0,0.018093]
[1680486473924,0.35497497,27634.0,27633.0,0.018093]
[1680486474150,0.40993197,27634.0,27633.0,0.018093]
[1680486476460,0.40072517,27634.0,27630.0,0.00018]
[1680486476690,0.05360232,27633.0,27624.0,0.00018]
[1680486476918,0.40491365,27632.0,27631.0,0.018095]
[1680486477150,0.45660665,27632.0,27631.0,0.018095]
[1680486477377,0.65660665,27632.0,27631.0,0.018095]
[1680486478053,0.65681665,27632.0,27631.0,0.018095]
[1680486478989,1.13116665,27632.0,27627.0,0.028938]
[1680486479217,0.2,27629.0,27627.0,0.028938]
[1680486479435,0.40616097,27628.0,27627.0,0.028938]
[1680486479906,0.58713097,27628.0,27627.0,0.028938]
[1680486480132,0.58713097,27628.0,27627.0,0.083232]
[1680486480363,0.58734097,27628.0,27627.0,0.083232]
[1680486480595,0.051186,27628.0,27627.0,0.4804709]
[1680486480837,0.051186,27628.0,27627.0,0.4318209]
[1680486480838,0.35497497,27628.0,27627.0,0.4318209]
[1680486481073,0.35497497,27628.0,27627.0,0.416438]
[1680486481302,0.35497497,27628.0,27627.0,0.054474]
[1680486481539,0.78033697,27628.0,27627.0,0.054294]
[1680486481778,0.5752,27626.0,27624.0,0.00018]
[1680486482009,1.30815897,27625.0,27624.0,0.018099]
[1680486482494,1.30815897,27625.0,27618.0,0.00018]
[1680486482728,0.35497497,27621.0,27620.0,0.028945]
[1680486482966,0.40673497,27621.0,27620.0,0.028945]
[1680486483198,0.96296497,27621.0,27620.0,0.028945]
[1680486483707,0.58776497,27621.0,27620.0,0.11931253]
[1680486484163,0.58776497,27621.0,27620.0,0.04690153]
[1680486484621,0.58776497,27621.0,27620.0,0.02879953]
[1680486484848,0.83776497,27621.0,27620.0,9.53e-06]
[1680486485987,1.21296497,27621.0,27620.0,9.53e-06]
[1680486486446,1.22925597,27621.0,27620.0,9.53e-06]
[1680486487134,1.21296497,27621.0,27620.0,9.53e-06]
[1680486487829,1.22925597,27621.0,27620.0,9.53e-06]
[1680486488051,1.21296497,27621.0,27620.0,9.53e-06]
[1680486488827,1.22925597,27621.0,27620.0,9.53e-06]
[1680486489296,1.52925597,27621.0,27620.0,9.53e-06]
[1680486489527,1.52946597,27621.0,27614.0,0.02108878]
[1680486489762,0.64837497,27615.0,27614.0,0.02108878]
[1680486489999,0.84247484,27615.0,27612.0,0.036215]
[1680486490230,0.40704697,27614.0,27613.0,0.018107]
[1680486490461,0.40704697,27614.0,27613.0,0.0256892]
[1680486490716,0.052072,27614.0,27613.0,0.0256892]
[1680486490970,0.18,27615.0,27613.0,0.0256892]
[1680486491217,0.53497497,27615.0,27613.0,0.0256892]
[1680486491951,0.53497497,27615.0,27613.0,0.0257492]
[1680486492190,0.53497497,27615.0,27614.0,0.01345142]
[1680486492433,0.58715497,27615.0,27614.0,0.054319]
[1680486492669,0.58715497,27615.0,27614.0,0.018106]
[1680486492906,0.58715497,27615.0,27614.0,0.307813]
[1680486493140,0.18,27615.0,27614.0,1.032263]
[1680486493386,0.18,27615.0,27614.0,1.032083]
[1680486493630,0.18,27615.0,27614.0,1.032143]
[1680486493859,0.18,27615.0,27614.0,1.032263]
[1680486494329,0.00021,27618.0,27616.0,0.3752]
[1680486494568,0.00021,27628.0,27617.0,0.872527]
[1680486494800,0.00021,27628.0,27618.0,0.04865]
[1680486494801,0.35497497,27627.0,27618.0,0.04865]
[1680486495033,0.35497497,27626.0,27620.0,0.054306]
[1680486495279,0.55518497,27626.0,27620.0,0.126717]
[1680486495753,0.35518497,27626.0,27621.0,0.04865]
[1680486495994,0.34397497,27626.0,27622.0,0.054303]
[1680486496477,0.40531797,27625.0,27623.0,0.04865]
[1680486496711,0.00021,27628.0,27624.0,0.1267]
[1680486496940,0.29361,27633.0,27624.0,0.1267]
[1680486497180,0.054726,27632.0,27624.0,0.1267]
[1680486497658,0.104726,27632.0,27624.0,0.1267]
[1680486497907,0.40612197,27631.0,27625.0,0.06132]
[1680486498144,0.050091,27630.0,27626.0,0.054294]
[1680486498379,0.050091,27630.0,27625.0,6e-05]
[1680486498380,0.35497497,27627.0,27625.0,6e-05]
[1680486498612,0.052976,27626.0,27625.0,0.036198]
[1680486498865,0.35497497,27626.0,27625.0,0.065157]
[1680486499112,0.00021,27629.0,27625.0,0.065277]
[1680486499355,0.35497497,27630.0,27625.0,0.113807]
[1680486499578,0.35497497,27630.0,27626.0,0.0600487]
[1680486499808,0.00021,27632.0,27627.0,0.126686]
[1680486500038,0.35497497,27631.0,27628.0,0.04865]
[1680486500268,0.00021,27632.0,27629.0,0.054289]
[1680486500502,0.35497497,27632.0,27629.0,0.0669691]
[1680486500726,0.35497497,27632.0,27629.0,0.2479381]
[1680486500951,0.00021,27633.0,27630.0,0.04865]
[1680486501179,0.02386,27643.0,27631.0,0.126668]
[1680486501444,0.35497497,27641.0,27632.0,0.0661818]
[1680486501676,0.35497497,27641.0,27634.0,0.126651]
[1680486501911,0.00021,27641.0,27635.0,0.04865]
[1680486502139,0.02365,27643.0,27636.0,0.1441711]
[1680486502366,0.37862497,27643.0,27637.0,0.04865]
[1680486502589,0.37362497,27643.0,27638.0,0.126633]
[1680486502810,0.051482,27642.0,27639.0,0.04865]
[1680486503045,0.051482,27642.0,27640.0,0.018089]
[1680486503278,0.051482,27642.0,27640.0,0.084285]
[1680486503510,0.13135,27641.0,27640.0,0.591732]
[1680486503739,0.13135,27641.0,27640.0,0.800352]
[1680486503983,0.00021,27646.0,27640.0,1.15520697]
[1680486504247,0.02365,27649.0,27643.0,0.2]
[1680486504443,0.02365,27649.0,27641.0,0.43590539]
[1680486504444,0.35497497,27648.0,27644.0,0.126607]
[1680486504670,0.35518497,27648.0,27644.0,0.054259]
[1680486505134,0.49694984,27647.0,27644.0,0.126607]
[1680486505363,0.35497497,27645.0,27644.0,0.054259]
[1680486505589,0.40670497,27645.0,27644.0,0.054259]
[1680486505837,0.40670497,27645.0,27644.0,0.0307467]
[1680486506088,0.05173,27645.0,27644.0,0.018086]
[1680486506333,0.3,27645.0,27641.0,0.00012]
[1680486506596,0.54834184,27644.0,27636.0,0.072548]
[1680486506832,0.54834184,27644.0,27639.0,0.01809]
[1680486506833,0.18088,27642.0,27639.0,0.01809]
[1680486507060,0.40631297,27641.0,27639.0,0.01809]
[1680486507294,0.051538,27640.0,27639.0,0.01809]
[1680486507521,0.40651297,27640.0,27639.0,0.01809]
[1680486508015,0.051538,27640.0,27639.0,0.01809]
[1680486508248,0.05,27644.0,27639.0,0.03149668]
[1680486508492,0.35497497,27642.0,27639.0,0.01809]
[1680486508737,0.3752,27639.0,27636.0,0.00018]
[1680486508980,0.2934,27636.0,27627.0,0.02365]
[1680486509203,0.18096,27630.0,27627.0,0.02365]
[1680486509445,0.05554,27629.0,27627.0,0.02365]
[1680486509906,0.49694984,27628.0,27627.0,0.02365]
[1680486510137,0.55051084,27628.0,27627.0,0.02365]
[1680486510591,0.72482297,27628.0,27627.0,0.02365]
[1680486511056,1.10002297,27628.0,27627.0,0.02365]
[1680486511290,0.78373597,27628.0,27627.0,0.02365]
[1680486511525,0.40874597,27628.0,27627.0,0.02365]
[1680486511997,0.40853597,27628.0,27627.0,0.02365]
[1680486512227,0.40874597,27628.0,27627.0,0.02365]
[1680486512698,0.053561,27628.0,27627.0,0.02365]
[1680486512980,0.2934,27633.0,27627.0,0.02365]
[1680486512981,0.00015,27631.0,27627.0,0.84848987]
[1680486513206,0.35518497,27641.0,27630.0,0.2]
[1680486513439,0.35518497,27641.0,27633.0,0.126658]
[1680486513663,0.35518497,27641.0,27634.0,0.0126658]
[1680486513885,0.35518497,27641.0,27636.0,0.054276]
[1680486514117,0.35518497,27641.0,27636.0,0.126645]
[1680486514400,0.00021,27641.0,27636.0,0.126645]
[1680486514640,0.02365,27645.0,27637.0,0.022775]
[1680486514863,0.35497497,27644.0,27639.0,0.05427]
[1680486515083,0.35518497,27644.0,27639.0,0.05427]
[1680486515324,0.35497497,27644.0,27639.0,0.05427]
[1680486515557,0.35497497,27644.0,27639.0,0.05445]
[1680486516897,0.02365,27645.0,27639.0,0.05445]
[1680486517138,0.37862497,27645.0,27640.0,0.0141753]
[1680486517369,0.37862497,27645.0,27641.0,0.126619]
[1680486517597,0.37862497,27645.0,27641.0,0.126799]
[1680486517822,0.38423497,27644.0,27641.0,0.054445]
[1680486518050,0.028464,27643.0,27642.0,0.02686203]
[1680486518290,0.028464,27643.0,27642.0,0.018268]
[1680486518291,0.38343897,27643.0,27642.0,0.018268]
[1680486518516,0.38343897,27643.0,27642.0,0.018208]
[1680486518971,0.38343897,27643.0,27642.0,0.018268]
[1680486519214,0.02365,27645.0,27642.0,0.963805]
[1680486519472,0.02365,27645.0,27643.0,0.039317]
[1680486519722,0.02365,27645.0,27644.0,0.532395]
[1680486519956,0.02365,27645.0,27644.0,0.89604997]
[1680486520191,0.37862497,27645.0,27644.0,0.157375]
[1680486520431,0.052731,27645.0,27644.0,0.0340045]
[1680486520662,0.02365,27645.0,27644.0,0.0425045]
[1680486520905,0.02365,27645.0,27644.0,0.39747947]
[1680486521137,0.02365,27645.0,27644.0,0.77267947]
[1680486521579,0.02365,27645.0,27644.0,0.0425045]
[1680486521801,0.02365,27645.0,27644.0,0.39747947]
[1680486522261,0.02365,27645.0,27644.0,0.77267947]
[1680486522484,0.02365,27645.0,27644.0,0.80217447]
[1680486522957,0.02386,27649.0,27647.0,0.57511]
[1680486523187,0.02386,27649.0,27648.0,1.07617597]
[1680486523188,0.02365,27649.0,27648.0,1.07617597]
[1680486523453,0.02365,27649.0,27648.0,0.721201]
[1680486523680,0.02365,27649.0,27648.0,0.165157]
[1680486523914,0.02365,27649.0,27648.0,0.054252]
[1680486524133,0.02365,27649.0,27648.0,0.0596772]
[1680486525059,0.02365,27649.0,27648.0,0.2396772]
[1680486525293,0.02365,27649.0,27648.0,0.2481772]
[1680486525522,0.02365,27649.0,27648.0,1.00945317]
[1680486525742,0.02365,27649.0,27648.0,1.19029717]
[1680486526893,0.02365,27649.0,27648.0,0.4601222]
[1680486527184,0.16562487,27649.0,27648.0,0.265353]
[1680486527417,0.16562487,27649.0,27648.0,0.234252]
[1680486527418,0.02365,27649.0,27648.0,0.234252]
[1680486527651,0.02365,27649.0,27648.0,0.265441]
[1680486527872,0.02365,27649.0,27648.0,0.2992192]
[1680486528568,0.02365,27649.0,27648.0,1.02939417]
[1680486528798,0.02365,27649.0,27648.0,1.03789417]
[1680486529266,0.02365,27649.0,27648.0,1.33129417]
[1680486529495,0.02365,27649.0,27648.0,1.34906365]
[1680486529725,0.02365,27656.0,27652.0,0.3752]
[1680486529989,0.01365,27656.0,27654.0,0.3752]
[1680486530224,0.01365,27656.0,27655.0,0.092051]
[1680486530913,0.01365,27656.0,27655.0,0.018079]
[1680486531135,0.042594,27656.0,27655.0,0.018079]
[1680486531357,0.042594,27656.0,27655.0,0.0235031]
[1680486531581,0.39756897,27656.0,27654.0,0.01808]
[1680486531808,0.38418497,27655.0,27654.0,0.018079]
[1680486532032,0.02921,27655.0,27654.0,0.018079]
[1680486533168,0.01365,27656.0,27654.0,0.0085]
[1680486533406,0.02948,27655.0,27650.0,0.00018]
[1680486533685,0.14197487,27654.0,27650.0,0.05562]
[1680486533918,0.028582,27653.0,27650.0,0.018082]
[1680486534374,0.028394,27655.0,27654.0,0.151418]
[1680486534603,0.028394,27655.0,27654.0,0.205659]
[1680486535076,0.028394,27655.0,27654.0,0.151418]
[1680486535302,0.028394,27655.0,27654.0,0.1846578]
[1680486535533,0.028394,27655.0,27654.0,0.1665778]
[1680486535766,0.028394,27655.0,27654.0,0.1846578]
[1680486536936,0.028394,27655.0,27654.0,0.5683578]
[1680486537173,0.01365,27656.0,27654.0,0.92345277]
[1680486537406,0.01365,27656.0,27655.0,0.73867497]
[1680486537645,0.01365,27656.0,27655.0,0.86529197]
[1680486537872,0.01365,27656.0,27655.0,0.86541197]
[1680486538554,0.01365,27656.0,27655.0,0.90317097]
[1680486539257,0.01365,27656.0,27655.0,0.92094045]
[1680486539474,0.01365,27656.0,27655.0,0.90317097]
[1680486540423,0.01365,27656.0,27655.0,0.92094045]
[1680486540873,0.01365,27656.0,27655.0,0.97094045]
[1680486541111,0.01365,27656.0,27655.0,1.26434045]
[1680486541344,6e-05,27664.0,27662.0,0.57511]
[1680486541587,5e-05,27663.0,27662.0,1.92806897]
[1680486541822,0.02365,27672.0,27665.0,0.57511]
[1680486542057,0.02365,27672.0,27666.0,1.24533597]
[1680486542283,0.02365,27672.0,27666.0,0.90303597]
[1680486543195,0.00365,27667.0,27666.0,0.99451097]
[1680486543657,0.00365,27667.0,27666.0,0.41090097]
[1680486543955,0.02365,27672.0,27666.0,1.03073367]
[1680486544203,0.03030207,27673.0,27672.0,0.05]
[1680486544437,0.01,27682.0,27672.0,1.32470697]
[1680486544669,0.01,27682.0,27676.0,0.3752]
[1680486544900,0.01,27682.0,27678.0,0.3752]
[1680486545245,0.005,27682.0,27679.0,0.83088497]
[1680486545480,0.005,27682.0,27680.0,0.040809]
[1680486545704,0.005,27682.0,27681.0,0.026562]
[1680486545938,0.005,27682.0,27681.0,0.064607]
[1680486546168,0.02365,27684.0,27682.0,0.05]
[1680486546411,0.02365,27684.0,27683.0,0.45577197]
[1680486546673,0.02365,27684.0,27683.0,0.83097197]
[1680486547352,0.02365,27684.0,27683.0,0.100797]
[1680486547587,0.02365,27684.0,27683.0,0.062684]
[1680486547823,0.02365,27684.0,27683.0,0.088214]
[1680486548061,0.01190881,27684.0,27683.0,0.088214]
[1680486548256,0.01190881,27684.0,27683.0,0.44318897]
[1680486548517,0.01190881,27684.0,27683.0,0.81838897]
[1680486549660,0.01190881,27684.0,27680.0,0.00012]
[1680486549888,0.01190881,27684.0,27673.0,0.80937772]
[1680486549889,0.15388368,27684.0,27681.0,0.018062]
[1680486550110,0.00690881,27684.0,27681.0,0.018062]
[1680486550350,0.00690881,27684.0,27681.0,0.0234809]
[1680486550801,0.00690881,27684.0,27682.0,0.73017497]
[1680486551030,0.00690881,27684.0,27683.0,0.420337]
[1680486551259,0.00690881,27684.0,27683.0,0.77531197]
[1680486551718,0.00690881,27684.0,27683.0,0.78381197]
[1680486551952,0.00690881,27684.0,27683.0,0.76575097]
[1680486552455,0.00690881,27684.0,27683.0,0.78381197]
[1680486553440,0.00690881,27684.0,27683.0,0.053637]
[1680486553695,0.00690881,27684.0,27683.0,0.018061]
[1680486554250,0.14888368,27684.0,27678.0,0.00018]
[1680486554432,0.14888368,27684.0,27683.0,0.018061]
[1680486554665,0.00690881,27684.0,27683.0,0.74823597]
[1680486554896,0.00690881,27684.0,27683.0,0.77555297]
[1680486555583,0.00690881,27684.0,27683.0,0.79332245]
[1680486555778,0.00690881,27684.0,27683.0,0.80182245]
[1680486556513,0.00690881,27684.0,27683.0,0.80188245]
[1680486556747,0.00690881,27684.0,27683.0,1.25173286]
[1680486557198,8.81e-06,27684.0,27683.0,1.30173286]
[1680486557438,0.00021,27700.0,27688.0,0.3752]
[1680486557660,0.00021,27702.0,27691.0,0.682152]
[1680486557888,1.184839,27710.0,27693.0,0.3752]
[1680486557889,0.02386,27701.0,27693.0,0.3752]
[1680486558191,0.02386,27701.0,27692.0,0.39062597]
[1680486558192,0.02386,27701.0,27695.0,0.501574]
[1680486558444,0.02386,27701.0,27695.0,0.85654897]
[1680486558693,0.02386,27701.0,27696.0,0.0085]
[1680486558927,0.02386,27701.0,27697.0,0.054156]
[1680486559684,0.032187,27700.0,27697.0,0.054156]
[1680486559906,0.032187,27700.0,27698.0,0.0054156]
[1680486560133,0.032397,27700.0,27697.0,0.018052]
[1680486560364,0.032187,27700.0,27697.0,0.018052]
[1680486560842,0.032187,27700.0,27697.0,0.07220947]
[1680486561078,0.02365,27701.0,27697.0,0.09026147]
[1680486561318,0.02365,27701.0,27697.0,0.01805247]
[1680486561534,0.031986,27700.0,27697.0,0.01805247]
[1680486561758,0.38696097,27700.0,27697.0,4.7e-07]
[1680486562020,0.52747884,27699.0,27697.0,4.7e-07]
[1680486562258,0.282055,27698.0,27697.0,4.7e-07]
[1680486562491,0.63723997,27698.0,27697.0,4.7e-07]
[1680486562953,0.58723997,27698.0,27697.0,4.7e-07]
[1680486563188,0.58708997,27698.0,27697.0,4.7e-07]
[1680486563412,0.58723997,27698.0,27697.0,4.7e-07]
[1680486563634,0.58211997,27698.0,27697.0,4.7e-07]
[1680486565942,0.56753997,27698.0,27697.0,0.01805247]
[1680486566193,0.38702997,27698.0,27697.0,4.7e-07]
[1680486569186,1.68635101,27698.0,27697.0,4.7e-07]
[1680486570844,1.86687101,27698.0,27697.0,4.7e-07]
[1680486571102,1.68635101,27698.0,27697.0,4.7e-07]